bitfinex-derivatives/quotes_SOLF0:USTF0_20250312
["timestamp","ask_amount","ask_price","bid_price","bid_amount"]
[1741746877242,16.81132831,124.55,124.54,0.05550062]
[1741746877433,16.81132831,124.55,124.54,8.08640062]
[1741746877935,16.81132831,124.55,124.54,0.05550062]
[1741746880141,16.81132831,124.55,124.54,8.08640062]
[1741746880638,6.4658955,124.55,124.54,8.08640062]
[1741746881246,9.55e-05,124.55,124.54,8.08640062]
[1741746881739,0.06061773,124.57,124.56,8.0297]
[1741746881940,0.06061773,124.57,124.56,39.7897]
[1741746882644,0.06061773,124.57,124.54,0.05550062]
[1741746884035,16.92020241,124.56,124.5,272.58]
[1741746884240,8.0312,124.54,124.51,8.0328]
[1741746884438,2.0496,124.55,124.51,8.0328]
[1741746884641,2.0496,124.55,124.5,240.82]
[1741746884936,2.1537,124.56,124.5,272.54]
[1741746885137,0.05942379,124.54,124.52,0.05436396]
[1741746885342,8.0291,124.57,124.53,8.031]
[1741746885536,0.05263902,124.54,124.53,8.031]
[1741746885955,3.902e-05,124.54,124.53,24.95120241]
[1741746886446,3.902e-05,124.54,124.53,27.10880241]
[1741746887246,2.1537,124.61,124.53,19.07780241]
[1741746887443,2.1537,124.61,124.58,8.0279]
[1741746887644,2.1537,124.61,124.56,31.7]
[1741746887848,2.0496,124.63,124.56,31.7]
[1741746888045,2.0496,124.63,124.57,16.92020241]
[1741746888342,2.0496,124.63,124.56,31.7]
[1741746888343,16.92020241,124.62,124.56,31.7]
[1741746888548,0.05844109,124.61,124.59,0.05978552]
[1741746888749,16.92020241,124.6,124.53,34.0376]
[1741746889046,8.0288,124.58,124.54,8.0307]
[1741746889243,8.0288,124.58,124.53,31.88]
[1741746889549,8.0288,124.58,124.53,39.9112]
[1741746889847,0.05889907,124.57,124.54,0.04721746]
[1741746891653,0.05889907,124.57,124.54,8.07751746]
[1741746891848,0.05889907,124.57,124.54,0.04721746]
[1741746892342,0.05889907,124.57,124.55,8.0298]
[1741746893649,6.39558604,124.56,124.55,8.0298]
[1741746894849,6.39558604,124.56,124.54,0.04721746]
[1741746895042,6.39558604,124.56,124.54,8.07791746]
[1741746895248,6.39558604,124.55,124.54,0.04721746]
[1741746895449,6.39558604,124.55,124.54,8.07811746]
[1741746898353,6.39558604,124.55,124.54,0.04721746]
[1741746898761,6.39558604,124.55,124.54,8.07811746]
[1741746899456,6.39558604,124.55,124.54,0.04721746]
[1741746902163,6.39558604,124.55,124.5,272.48]
[1741746902359,6.39558604,124.54,124.5,280.5132]
[1741746902754,6.39558604,124.54,124.5,39.6932]
[1741746903155,6.39558604,124.54,124.46,163.76998614]
[1741746903362,6.44982903,124.53,124.47,33.7161]
[1741746903656,8.0326,124.52,124.48,8.0344]
[1741746903859,14.42818604,124.52,124.48,8.0344]
[1741746904049,6.39558604,124.52,124.48,8.0344]
[1741746904255,6.39558604,124.51,124.47,31.66]
[1741746904562,0.05983996,124.5,124.47,31.66]
[1741746904763,6.455426,124.5,124.49,8.0342]
[1741746905157,6.455426,124.5,124.46,16.92020241]
[1741746905358,6.455426,124.5,124.47,39.6951]
[1741746906060,6.39558604,124.49,124.48,8.0348]
[1741746906461,0.05983996,124.5,124.47,31.66]
[1741746906961,0.05983996,124.5,124.49,8.0342]
[1741746907764,6.43893074,124.5,124.49,8.0342]
[1741746908861,6.43893074,124.5,124.47,31.66]
[1741746909061,14.47243074,124.5,124.47,31.66]
[1741746909360,6.43893074,124.5,124.48,8.0345]
[1741746909563,6.43893074,124.5,124.47,31.66]
[1741746909564,0.05983996,124.5,124.47,31.66]
[1741746909966,0.05983996,124.5,124.49,8.0342]
[1741746911661,0.05983996,124.5,124.47,31.66]
[1741746911867,0.05983996,124.5,124.45,31.68]
[1741746912063,0.05983996,124.5,124.43,4.1102]
[1741746912258,0.05983996,124.5,124.42,19.10330241]
[1741746912259,50.85954237,124.5,124.42,31.72]
[1741746912465,50.79970241,124.5,124.42,31.72]
[1741746912770,0.06074146,124.47,124.42,31.72]
[1741746913166,0.06074146,124.47,124.4,16.92020241]
[1741746913468,31.78074146,124.47,124.41,31.7]
[1741746913871,31.78074146,124.47,124.41,39.7389]
[1741746914071,16.92020241,124.46,124.38,245.2331]
[1741746914464,0.05560861,124.43,124.38,276.9331]
[1741746914662,0.05560861,124.43,124.39,8.0404]
[1741746914971,0.05560861,124.43,124.38,276.9331]
[1741746915167,0.05560861,124.43,124.38,245.2331]
[1741746915373,0.05560861,124.43,124.39,31.7]
[1741746917376,0.05560861,124.43,124.39,48.62020241]
[1741746917572,0.05560861,124.43,124.42,8.0387]
[1741746918074,2.1795,124.5,124.45,8.0364]
[1741746918075,8.0346,124.49,124.45,8.0364]
[1741746918273,8.0346,124.49,124.42,31.68]
[1741746918474,50.77970241,124.5,124.42,31.68]
[1741746918876,16.92020241,124.48,124.42,31.68]
[1741746919175,0.06078496,124.46,124.44,0.05560861]
[1741746920968,8.0368,124.45,124.44,0.05560861]
[1741746921577,19.34020241,124.45,124.31,241.06]
[1741746921889,16.92020241,124.36,124.32,8.0447]
[1741746922071,8.0439,124.34,124.28,88.68791263]
[1741746922273,4.1653,124.35,124.28,88.68791263]
[1741746922776,0.05922455,124.33,124.28,49.93301263]
[1741746922979,33.58,124.32,124.28,30.55220203]
[1741746923471,50.50020241,124.32,124.28,30.55220203]
[1741746923676,16.92020241,124.3,124.28,30.55220203]
[1741746923976,50.50020241,124.32,124.28,30.55220203]
[1741746924168,16.98069483,124.3,124.28,30.55220203]
[1741746924366,0.06049242,124.3,124.28,30.55220203]
[1741746924871,0.06049242,124.3,124.27,35.9]
[1741746925476,192.0,124.34,124.29,8.0465]
[1741746925674,27.19989558,124.38,124.28,4.0844]
[1741746925873,35.24049558,124.4,124.28,4.0844]
[1741746926075,27.19989558,124.4,124.28,4.0844]
[1741746926269,27.19989558,124.39,124.28,4.0844]
[1741746926477,27.19989558,124.37,124.28,4.0844]
[1741746926672,27.19989558,124.4,124.29,27.19989558]
[1741746926878,0.05951776,124.35,124.32,0.05544218]
[1741746927278,27.19989558,124.33,124.28,2.0287]
[1741746927574,27.19989558,124.31,124.23,8.0509]
[1741746927780,27.19989558,124.31,124.21,2.1058]
[1741746927781,63.85989558,124.31,124.29,0.05205113]
[1741746928075,63.85989558,124.31,124.21,4.0983]
[1741746928076,66.27989558,124.31,124.21,40.7783]
[1741746928277,27.19989558,124.29,124.21,42.8571]
[1741746928481,63.85989558,124.31,124.21,42.8571]
[1741746928782,63.85989558,124.31,124.23,8.0509]
[1741746929178,0.06165311,124.28,124.26,8.0484]
[1741746929374,0.06165311,124.28,124.21,42.8571]
[1741746929572,0.06165311,124.28,124.22,27.19989558]
[1741746929776,0.06165311,124.28,124.26,8.0489]
[1741746929978,0.06165311,124.28,124.22,27.19989558]
[1741746930377,27.19989558,124.25,124.14,27.19989558]
[1741746930581,27.19989558,124.21,124.11,6.4175]
[1741746930776,37.06,124.2,124.11,6.4175]
[1741746931378,8.0557,124.16,124.11,6.4175]
[1741746931585,37.08,124.15,124.11,4.2405]
[1741746932081,229.32,124.24,124.12,64.51989558]
[1741746932379,27.19989558,124.23,124.12,64.51989558]
[1741746932579,192.0,124.24,124.12,64.51989558]
[1741746932783,268.47989558,124.27,124.14,27.19989558]
[1741746932977,64.55989558,124.29,124.18,27.19989558]
[1741746933179,219.19989558,124.31,124.19,43.733]
[1741746933375,27.19989558,124.23,124.13,37.98]
[1741746933577,27.19989558,124.23,124.15,2.0967]
[1741746933885,38.12,124.25,124.16,38.16]
[1741746934078,27.19989558,124.22,124.15,2.0967]
[1741746934779,0.05507033,124.2,124.15,2.0967]
[1741746935882,0.05507033,124.2,124.19,8.0536]
[1741746936185,0.05507033,124.2,124.15,2.0967]
[1741746936887,8.054,124.19,124.13,8.0574]
[1741746937078,27.19989558,124.18,124.1,38.62]
[1741746937385,0.05343692,124.17,124.1,38.62]
[1741746937882,0.05343692,124.17,124.12,8.0575]
[1741746938087,0.05343692,124.17,124.1,38.62]
[1741746938686,0.05343692,124.17,124.12,8.0577]
[1741746938886,0.05343692,124.17,124.1,38.62]
[1741746939286,0.05343692,124.17,124.12,8.0575]
[1741746939487,0.05343692,124.17,124.09,6.3388]
[1741746939687,27.19989558,124.15,124.09,6.3388]
[1741746939884,27.19989558,124.15,124.09,4.1564]
[1741746939885,8.1094106,124.14,124.09,4.1564]
[1741746940084,0.0520106,124.14,124.09,4.1564]
[1741746940387,0.0520106,124.14,124.09,12.216]
[1741746940886,0.0520106,124.14,124.09,4.1564]
[1741746941088,0.0520106,124.14,123.9,29.19989558]
[1741746941089,27.19989558,124.1,123.9,190.0]
[1741746941389,27.19989558,124.08,123.94,27.19989558]
[1741746941586,0.05175962,124.01,123.97,27.19989558]
[1741746941781,40.16,124.11,124.0,27.19989558]
[1741746941984,8.0583,124.12,124.01,44.474]
[1741746942288,27.19989558,124.17,124.06,27.19989558]
[1741746942486,27.19989558,124.17,124.07,42.3652]
[1741746942683,27.19989558,124.11,124.01,245.814]
[1741746942883,40.28,124.1,124.01,245.814]
[1741746943086,0.05420723,124.07,124.05,0.06002794]
[1741746944093,27.25410281,124.07,124.05,0.06002794]
[1741746944389,67.79989558,124.06,124.05,0.06002794]
[1741746944592,0.05420723,124.07,124.05,0.06002794]
[1741746945186,0.05420723,124.07,124.05,8.12252794]
[1741746945391,0.05420723,124.07,124.05,0.06002794]
[1741746945694,0.05420723,124.07,124.05,8.12252794]
[1741746946287,0.05420723,124.07,124.06,8.062]
[1741746946488,0.05420723,124.07,124.03,4.2581]
[1741746946489,0.05420723,124.07,124.04,40.66]
[1741746946691,0.05420723,124.07,124.05,2.1809]
[1741746946884,8.0569,124.14,124.06,8.062]
[1741746947087,8.0569,124.14,124.05,2.1809]
[1741746947389,27.19989558,124.15,124.05,2.1809]
[1741746947985,27.19989558,124.13,124.05,2.1809]
[1741746948192,27.25092584,124.11,124.09,0.05272679]
[1741746948488,8.0612,124.08,123.98,40.84]
[1741746948686,27.19989558,124.05,123.99,2.1909]
[1741746948890,27.19989558,124.03,123.95,241.6]
[1741746949091,8.0649,124.02,123.95,241.6]
[1741746949289,41.76,124.04,123.95,241.6]
[1741746949489,27.25922692,124.0,123.89,241.72]
[1741746949790,69.73989558,124.0,123.89,284.08]
[1741746949988,0.05433359,123.96,123.89,284.08]
[1741746950189,219.19989558,123.95,123.81,1.40424502]
[1741746950491,219.19989558,123.95,123.75,241.72]
[1741746950492,192.0,123.95,123.84,27.19989558]
[1741746950683,0.05526475,123.89,123.85,44.9253]
[1741746951088,42.74,123.96,123.89,8.073]
[1741746951393,241.72,124.01,123.88,69.95989558]
[1741746951691,27.19989558,124.02,123.91,27.19989558]
[1741746951895,27.19989558,124.02,123.92,44.9653]
[1741746952186,42.84,124.03,123.92,47.071]
[1741746952391,42.84,124.03,123.93,2.0892]
[1741746952593,0.05769309,123.99,123.96,0.0576483]
[1741746952793,0.05769309,123.99,123.97,42.96]
[1741746952989,279.33415937,124.06,123.97,42.96]
[1741746952990,44.39415937,124.06,123.97,42.96]
[1741746953191,0.05904967,123.99,123.97,43.01481544]
[1741746953385,42.94,124.07,123.97,42.96]
[1741746953692,42.94,124.07,123.97,43.01717179]
[1741746953890,42.94,124.07,123.97,42.96]
[1741746954495,8.0628,124.05,123.97,42.96]
[1741746954795,0.05549893,124.03,124.01,0.05989776]
[1741746958595,44.39415937,124.1,124.01,44.82849776]
[1741746958896,236.39415937,124.12,124.02,2.1508]
[1741746959295,44.39415937,124.12,124.02,2.1508]
[1741746959696,44.39415937,124.12,124.06,0.0580756]
[1741746959895,0.06091215,124.08,124.06,0.0580756]
[1741746961197,8.0614,124.07,124.06,0.0580756]
[1741746961397,8.0614,124.07,124.06,0.00540944]
[1741746961698,44.45507152,124.08,124.06,0.00540944]
[1741746962092,0.06091215,124.08,124.06,0.00540944]
[1741746962487,44.45507152,124.08,124.06,0.00540944]
[1741746962692,0.06091215,124.08,124.06,0.00540944]
[1741746963097,0.06091215,124.08,124.06,2.12240944]
[1741746963297,0.06091215,124.08,124.07,8.0614]
[1741746963501,44.39415937,124.14,124.06,2.12240944]
[1741746963797,44.39415937,124.16,124.1,8.0588]
[1741746963993,44.39415937,124.16,124.06,2.117]
[1741746964193,57.02890186,124.18,124.06,46.51115937]
[1741746964400,54.92130186,124.18,124.06,46.51115937]
[1741746964601,10.52714249,124.14,124.06,46.49115937]
[1741746964798,0.62262442,124.14,124.13,8.0575]
[1741746964996,0.62262442,124.14,124.12,42.68]
[1741746965799,8.0544,124.18,124.12,42.68]
[1741746965998,44.39415937,124.19,124.12,42.68]
[1741746965999,0.0524377,124.14,124.12,42.68]
[1741746966293,52.44825937,124.19,124.12,42.73130866]
[1741746966499,0.05996698,124.14,124.12,42.73130866]
[1741746966802,0.0599612,124.14,124.12,42.73130866]
[1741746967107,0.0599612,124.14,124.12,0.05130866]
[1741746967601,0.0599612,124.14,124.13,8.0575]
[1741746967901,104.56536386,124.21,124.12,0.05130866]
[1741746968100,8.0547,124.18,124.09,42.8]
[1741746968601,48.59695937,124.21,124.09,42.8]
[1741746969202,0.05243445,124.16,124.15,8.0562]
[1741746969503,35.82212749,124.24,124.15,42.62]
[1741746969699,44.39415937,124.23,124.15,42.62]
[1741746970002,31.58142749,124.24,124.15,42.62]
[1741746970197,39.63222749,124.24,124.19,8.0535]
[1741746970501,0.05145459,124.23,124.2,0.05440132]
[1741746971102,44.39415937,124.21,124.2,1.32e-06]
[1741746971304,52.44645937,124.21,124.2,1.32e-06]
[1741746971693,42.52,124.22,124.2,1.32e-06]
[1741746971904,44.44561396,124.23,124.2,1.32e-06]
[1741746972101,0.05145459,124.23,124.2,1.32e-06]
[1741746973104,31.58142749,124.24,124.21,42.46]
[1741746973305,84.21713999,124.25,124.21,42.46]
[1741746973809,80.89803999,124.25,124.24,8.0503]
[1741746974014,12.06596747,124.25,124.24,8.0503]
[1741746974510,7.65396747,124.25,124.24,8.0503]
[1741746974705,0.06020503,124.26,124.25,8.0497]
[1741746974912,0.06020503,124.26,124.25,50.3897]
[1741746975108,0.06020503,124.26,124.25,42.34]
[1741746975611,0.06020503,124.26,124.23,0.06098634]
[1741746976510,6.28570503,124.26,124.23,0.06098634]
[1741746976902,4.10080503,124.26,124.23,0.06098634]
[1741746977804,2.08020503,124.26,124.23,0.06098634]
[1741746979114,2.08020503,124.26,124.23,8.11188634]
[1741746979309,0.06020503,124.26,124.23,0.06098634]
[1741746979515,0.06020503,124.26,124.23,42.26098634]
[1741746980309,0.06020503,124.26,124.23,50.31158634]
[1741746980515,0.06020503,124.26,124.23,42.26098634]
[1741746981213,8.10940503,124.26,124.23,42.26098634]
[1741746981410,0.06020503,124.26,124.23,42.26098634]
[1741746982309,0.06020503,124.26,124.24,8.0498]
[1741746982608,0.06020503,124.26,124.23,42.26098634]
[1741746983514,0.06020503,124.26,124.24,8.0498]
[1741746983714,0.06020503,124.26,124.23,42.26098634]
[1741746985021,0.06020503,124.26,124.24,8.0503]
[1741746985515,0.06020503,124.26,124.23,0.06098634]
[1741746986317,0.06020503,124.26,124.23,8.11188634]
[1741746986510,0.06020503,124.26,124.23,0.06098634]
[1741746986916,0.06020503,124.26,124.23,8.11188634]
[1741746987111,0.06020503,124.26,124.23,0.06098634]
[1741746987612,44.39415937,124.25,124.17,41.6]
[1741746987815,44.39415937,124.23,124.17,41.6]
[1741746988006,8.0527,124.21,124.17,49.6545]
[1741746988207,44.39415937,124.23,124.17,41.6]
[1741746988413,10.236,124.24,124.2,8.0529]
[1741746988717,0.05303655,124.23,124.21,0.0608327]
[1741746990012,8.0516,124.22,124.21,0.0608327]
[1741746990619,8.0527,124.21,124.17,49.7548]
[1741746990819,2.0936,124.23,124.17,41.7]
[1741746991119,10.1448,124.23,124.17,41.7]
[1741746991314,2.1852,124.24,124.17,41.7]
[1741746991714,0.06009097,124.22,124.2,8.0529]
[1741746992017,0.06009097,124.22,124.19,0.0590761]
[1741746992215,0.06009097,124.22,124.21,8.0523]
[1741746992520,2.1821,124.28,124.21,41.52]
[1741746992716,44.39415937,124.23,124.17,8.0548]
[1741746992924,44.39415937,124.21,124.12,42.16]
[1741746993123,4.1595,124.2,124.12,42.16]
[1741746993623,0.05389856,124.17,124.15,0.06083332]
[1741746993916,0.05389856,124.17,124.15,8.11663332]
[1741746994316,0.05389856,124.17,124.15,0.06083332]
[1741746994722,0.05389856,124.17,124.16,42.0]
[1741746994922,0.05389856,124.17,124.16,50.0555]
[1741746998319,9.856e-05,124.17,124.16,50.0555]
[1741746998520,9.856e-05,124.17,124.16,52.4755]
[1741746999326,9.856e-05,124.17,124.16,50.0555]
[1741746999626,9.856e-05,124.17,124.16,52.4755]
[1741747001722,46.51055937,124.27,124.16,52.4755]
[1741747001723,2.1164,124.27,124.16,44.42]
[1741747001926,5.10700771,124.26,124.18,44.39415937]
[1741747002224,2.1164,124.27,124.24,8.0502]
[1741747002427,4.1822,124.28,124.22,41.74]
[1741747003320,4.1822,124.28,124.25,8.0492]
[1741747003822,10.2462,124.3,124.26,8.0484]
[1741747004020,2.1996,124.3,124.22,86.13415937]
[1741747004326,6.28990183,124.29,124.22,86.13415937]
[1741747004527,0.05987415,124.26,124.24,8.0498]
[1741747004722,0.05987415,124.26,124.24,0.05521582]
[1741747005226,0.05987415,124.26,124.25,8.0497]
[1741747005620,0.05987415,124.26,124.24,0.05521582]
[1741747006131,6.29323005,124.25,124.24,0.05521582]
[1741747006923,11.41351436,124.25,124.24,0.05521582]
[1741747008231,19.62592498,124.25,124.24,0.05521582]
[1741747009325,11.41351436,124.25,124.24,0.05521582]
[1741747009522,19.62981752,124.25,124.24,0.05521582]
[1741747009933,11.41351436,124.25,124.24,0.05521582]
[1741747010429,6.29323005,124.25,124.24,0.05521582]
[1741747010624,11.43142075,124.25,124.24,0.05521582]
[1741747011128,19.48112075,124.25,124.24,0.05521582]
[1741747011330,27.70254913,124.25,124.24,0.05521582]
[1741747011629,19.65284913,124.25,124.19,241.54]
[1741747011831,13.35961908,124.24,124.19,241.54]
[1741747012131,21.41041908,124.24,124.2,8.0527]
[1741747012327,6.29323005,124.23,124.2,8.0527]
[1741747012723,6.29323005,124.23,124.21,8.052]
[1741747012928,6.34643926,124.23,124.21,8.052]
[1741747013428,0.05320921,124.23,124.21,8.052]
[1741747013631,0.05320921,124.23,124.2,0.05969661]
[1741747013831,0.05320921,124.23,124.2,41.17969661]
[1741747014233,0.05320921,124.23,124.21,8.0519]
[1741747014532,0.05320921,124.23,124.2,41.17969661]
[1741747015226,0.05320921,124.23,124.22,8.0516]
[1741747016121,9.21e-06,124.23,124.22,8.0516]
[1741747017227,9.21e-06,124.23,124.22,35.26007834]
[1741747021937,2.1796,124.29,124.26,8.049]
[1741747022139,2.1052,124.3,124.25,40.38]
[1741747022334,2.1052,124.3,124.26,40.42]
[1741747022535,6.33414744,124.29,124.27,8.0483]
[1741747023134,0.06102969,124.29,124.27,0.06191682]
[1741747023333,0.06102969,124.29,124.28,8.0477]
[1741747025438,2.969e-05,124.29,124.28,35.25617834]
[1741747025637,2.0096,124.34,124.28,27.20847834]
[1741747025941,16.2766082,124.38,124.33,8.0445]
[1741747026141,13.38226413,124.37,124.33,8.0445]
[1741747026641,4.109,124.38,124.32,40.08]
[1741747026843,0.05732684,124.36,124.34,0.05094161]
[1741747027141,0.05732684,124.36,124.35,8.0428]
[1741747027441,0.05732684,124.36,124.34,0.05094161]
[1741747027941,0.05732684,124.36,124.32,40.08]
[1741747028735,8.10012684,124.36,124.32,40.08]
[1741747028940,27.26580518,124.36,124.29,39.98]
[1741747029242,27.20847834,124.36,124.33,0.05534605]
[1741747029438,0.0543624,124.34,124.29,39.98]
[1741747030242,8.0448,124.33,124.29,48.0271]
[1741747030542,0.0543624,124.34,124.3,0.05115464]
[1741747031641,0.0543624,124.34,124.3,27.25963298]
[1741747031942,0.0543624,124.34,124.33,8.0445]
[1741747032146,0.0543624,124.34,124.33,47.9245]
[1741747036446,0.0543624,124.34,124.33,39.52]
[1741747036638,0.0543624,124.34,124.33,47.5645]
[1741747039956,4.298,124.41,124.33,41.94]
[1741747040252,4.298,124.41,124.35,27.20847834]
[1741747040442,12.3377,124.41,124.36,8.0423]
[1741747040646,4.298,124.41,124.36,39.28]
[1741747041149,0.05840869,124.4,124.37,0.05359837]
[1741747041356,0.05840869,124.4,124.34,39.22]
[1741747041653,2.1887,124.4,124.34,39.22]
[1741747041856,4.298,124.41,124.35,268.46847834]
[1741747042056,4.298,124.41,124.37,27.20847834]
[1741747042256,4.298,124.41,124.38,39.2]
[1741747042456,0.05960319,124.4,124.38,39.25300332]
[1741747042656,0.05960319,124.4,124.39,8.0406]
[1741747042859,0.05960319,124.4,124.38,0.05300332]
[1741747043061,0.05960319,124.4,124.39,8.0406]
[1741747043252,0.05960319,124.4,124.39,47.1806]
[1741747044554,0.05960319,124.4,124.39,39.14]
[1741747045658,0.05960319,124.4,124.38,0.05300332]
[1741747047560,0.05960319,124.4,124.39,8.0406]
[1741747047965,0.05960319,124.4,124.38,0.05300332]
[1741747048162,0.05960319,124.4,124.38,8.09370332]
[1741747048460,0.05960319,124.4,124.38,0.05300332]
[1741747048865,8.0406,124.39,124.35,241.26]
[1741747049067,0.05960319,124.4,124.35,241.26]
[1741747049960,0.05960319,124.4,124.36,8.0425]
[1741747050160,0.05960319,124.4,124.36,0.05733411]
[1741747050355,8.041,124.39,124.36,0.05733411]
[1741747051764,0.05960319,124.4,124.36,0.05733411]
[1741747052466,8.09970319,124.4,124.36,0.05733411]
[1741747052666,0.05960319,124.4,124.36,0.05733411]
[1741747052857,27.20847834,124.37,124.28,241.22]
[1741747053062,8.0453,124.32,124.28,241.22]
[1741747053360,65.82847834,124.37,124.28,241.22]
[1741747053361,27.20847834,124.35,124.28,241.22]
[1741747053565,2.1418,124.34,124.28,241.22]
[1741747053866,0.05220797,124.32,124.3,0.0508165]
[1741747054968,0.05220797,124.32,124.31,46.6258]
[1741747056662,0.05220797,124.32,124.3,8.0970165]
[1741747056969,0.05220797,124.32,124.3,0.0508165]
[1741747057264,0.05220797,124.32,124.31,8.0458]
[1741747061669,4.0956,124.38,124.35,8.043]
[1741747061872,4.0956,124.38,124.32,38.22]
[1741747062073,17.50698289,124.37,124.32,38.22]
[1741747062871,0.0539957,124.36,124.33,0.06090665]
[1741747063071,8.0436,124.35,124.33,0.06090665]
[1741747063676,17.50698289,124.34,124.33,0.06090665]
[1741747064970,17.50698289,124.34,124.33,8.10540665]
[1741747065474,0.0539957,124.36,124.34,8.0436]
[1741747065874,0.0539957,124.36,124.33,0.06090665]
[1741747066075,0.0539957,124.36,124.34,8.0434]
[1741747066673,6.74745014,124.35,124.34,8.0434]
[1741747069471,6.74745014,124.35,124.33,27.26938499]
[1741747069677,6.74745014,124.35,124.33,0.06090665]
[1741747070376,0.0539957,124.36,124.34,8.0433]
[1741747071773,0.0539957,124.36,124.33,17.02867595]
[1741747072174,6.76070771,124.35,124.33,17.02867595]
[1741747072574,6.76070771,124.35,124.33,8.10510665]
[1741747072975,0.0539957,124.36,124.33,0.06090665]
[1741747073378,0.0539957,124.36,124.33,8.10510665]
[1741747073579,0.0539957,124.36,124.33,0.06090665]
[1741747073977,8.0436,124.35,124.33,0.06090665]
[1741747074273,0.0539957,124.36,124.33,0.06090665]
[1741747074673,8.0970957,124.36,124.33,0.06090665]
[1741747074978,0.0539957,124.36,124.33,0.06090665]
[1741747075177,8.0968957,124.36,124.33,0.06090665]
[1741747076181,17.56473698,124.34,124.33,0.06090665]
[1741747076382,17.56473698,124.34,124.33,8.10540665]
[1741747076585,17.56473698,124.34,124.33,0.06090665]
[1741747077681,17.56473698,124.34,124.33,8.10540665]
[1741747079382,17.56473698,124.34,124.33,0.06090665]
[1741747079778,17.56473698,124.34,124.3,16.9677693]
[1741747080083,17.56473698,124.33,124.27,54.1877693]
[1741747080578,6.75566807,124.32,124.29,8.047]
[1741747080784,17.56473698,124.32,124.29,8.047]
[1741747081085,17.56473698,124.31,124.29,8.10853847]
[1741747081384,6.75566807,124.3,124.29,8.10853847]
[1741747082079,6.75566807,124.3,124.29,0.06153847]
[1741747083479,6.75566807,124.3,124.29,8.10863847]
[1741747085989,6.75566807,124.3,124.29,25.07640777]
[1741747086387,0.06005336,124.32,124.29,25.07640777]
[1741747086689,0.06005336,124.32,124.31,8.0458]
[1741747086885,6.75488404,124.31,124.29,17.02930777]
[1741747087093,6.75488404,124.31,124.3,8.046]
[1741747087284,0.06005336,124.32,124.29,17.02930777]
[1741747087588,0.06005336,124.32,124.31,8.0458]
[1741747088189,6.81772743,124.32,124.31,25.0135693]
[1741747088785,0.06005336,124.32,124.31,25.0135693]
[1741747089789,1.9947,124.37,124.31,16.9677693]
[1741747090089,10.0367,124.37,124.32,36.6]
[1741747090287,1.9947,124.37,124.32,36.6]
[1741747090488,1.9947,124.37,124.32,44.6448]
[1741747090981,0.05666849,124.36,124.33,0.06186743]
[1741747091185,8.09956849,124.36,124.33,0.06186743]
[1741747091580,17.64838084,124.36,124.33,0.06186743]
[1741747091988,17.59171235,124.35,124.33,0.06186743]
[1741747092483,17.59171235,124.35,124.29,36.5]
[1741747092687,4.80947143,124.34,124.28,249.2675]
[1741747092883,9.62619282,124.33,124.28,249.2675]
[1741747093089,9.62619282,124.33,124.28,241.22]
[1741747093588,17.64690134,124.32,124.29,0.05721397]
[1741747093792,17.64690134,124.32,124.3,16.9677693]
[1741747093996,17.64690134,124.32,124.31,44.5058]
[1741747094295,0.05518899,124.32,124.31,44.5058]
[1741747094492,9.62619282,124.36,124.35,8.0432]
[1741747094788,9.62619282,124.36,124.31,36.46]
[1741747094789,9.62619282,124.37,124.34,36.42]
[1741747094993,9.62619282,124.37,124.36,8.0426]
[1741747095187,13.68969282,124.38,124.35,36.4]
[1741747095593,17.6132961,124.37,124.35,36.45265813]
[1741747096190,17.6132961,124.36,124.35,36.45265813]
[1741747096995,17.6132961,124.36,124.35,44.49585813]
[1741747097787,17.6132961,124.36,124.35,61.46362743]
[1741747098794,17.6132961,124.36,124.35,25.06362743]
[1741747098990,6.77434465,124.36,124.35,61.20362743]
[1741747100798,0.05288558,124.38,124.37,8.0419]
[1741747101094,0.05288558,124.38,124.37,25.0096693]
[1741747101686,10.88939018,124.38,124.37,25.0096693]
[1741747102195,9.62619282,124.41,124.4,8.04]
[1741747102395,9.62619282,124.41,124.4,43.96]
[1741747102596,9.62619282,124.41,124.4,35.92]
[1741747103093,2.0391,124.42,124.4,35.92]
[1741747103486,2.09425019,124.42,124.4,35.97451627]
[1741747104096,2.09425019,124.42,124.4,44.01431627]
[1741747104397,2.09425019,124.42,124.4,35.97451627]
[1741747105594,10.13305019,124.42,124.4,35.97451627]
[1741747106188,8.0393,124.41,124.4,35.97451627]
[1741747106598,8.0393,124.41,124.4,0.05451627]